Cogmind - Beta 16 @@@ ROGUE MODE // 2025.12.14 @ 13:04:56 Player: TheDoorMatt Result: Self-destructed Performance ------------- Evolutions (2) 1000 Regions Visited (3) 600 Robots Destroyed (27) 135 Value Destroyed (787) 787 Prototype IDs (3) 60 Alien Tech Used (0) 0 Bonus (0) 0 TOTAL SCORE: 2582 Bonus ------- None Cogmind --------- Core Integrity 466/550 Matter 283/300 Energy 84/100 System Corruption 0% Temperature Cool (0) Movement Core (250) Ox4 Location -8/Materials Parts ------- > --- POWER (2) -------- (None) > --- PROPULSION (2) --- (None) > --- UTILITY (5) ------ Cryofiber Web Medium Storage Unit > --- WEAPON (2) ------- Heavy Particle Gun > --- INVENTORY (10) --- Carbon-fiber Leg Flight Unit Flight Unit Improved VTOL Module Shock Rifle Shotgun Improved Datajack Peak State ------------ > --- POWER ------------ Improved Ion Engine > --- PROPULSION ------- Light Treads Light Treads > --- UTILITY ---------- Thermal Generator Cryofiber Web Heat Sink Medium Storage Unit > --- WEAPON ----------- Heavy Particle Gun Mini Grenade Launcher > --- INVENTORY -------- Carbon-fiber Leg Flight Unit Flight Unit Improved VTOL Module Shock Rifle Shotgun Improved Datajack [Rating: 19] Favorites ----------- Power Light Ion Engine Engine Light Ion Engine Propulsion Aluminum Leg Treads Light Treads Leg Aluminum Leg Flight Unit Flight Unit Utility Small Storage Unit Device Seismic Detector Storage Small Storage Unit Protection Light Armor Plating Weapon Assault Rifle Energy Gun EM Pulse Gun Energy Cannon Light EM Pulse Cannon Ballistic Gun Assault Rifle Launcher Mini Grenade Launcher Build | -11 -10 -9 -8 ------- Run | Yrd Mat Mat Mat Slots Evolved 4 | . . 2 2 Power 1 | . . . 1 Propulsion . | . . . . Utility 3 | . . 2 1 Weapon . | . . . . Parts Attached 32 | 6 2 18 6 Power 4 | 1 . 2 1 Engine 4 | 1 . 2 1 Core . | . . . . Reactor . | . . . . Propulsion 7 | 2 . 5 . Treads 2 | . . 2 . Leg 3 | 2 . 1 . Wheel . | . . . . Hover . | . . . . Flight 2 | . . 2 . Utility 12 | 1 1 6 4 Device 6 | . . 3 3 Storage 2 | 1 . . 1 Processor . | . . . . Hackware . | . . . . Protection 4 | . 1 3 . Artifact . | . . . . Weapon 9 | 2 1 5 1 Energy Gun 2 | . . 1 1 Energy Cannon 2 | . . 2 . Ballistic Gun 4 | 2 1 1 . Ballistic Cannon . | . . . . Launcher 1 | . . 1 . Special Weapon . | . . . . Impact Weapon . | . . . . Slashing Weapon . | . . . . Piercing Weapon . | . . . . Special Melee Weapon . | . . . . Unidentified Prototypes 1 | . . . 1 Parts Lost 21 | . . 13 8 Power 3 | . . 1 2 Propulsion 5 | . . 3 2 Utility 8 | . . 5 3 Weapon 5 | . . 4 1 Highest Loss Streak 8 | . . 8 6 To Critical Strikes 1 | . . . 1 Average Backups 5 | 5 6 4 5 Power . | . 1 . . Propulsion 2 | 3 3 2 2 Utility . | . . . . Weapon 1 | . 1 1 1 Tool/Special . | . . . . Unused Backups 9 | . 5 . 4 Power 1 | . 1 . . Propulsion 5 | . 3 . 2 Utility . | . . . . Weapon 2 | . 1 . 1 Tool/Special 1 | . . . 1 Average Slot Usage (%) 83 | . 92 84 63 Engine 10 | . 12 10 6 Treads 4 | . . 1 17 Leg 17 | . 27 17 . Device 8 | . . 14 8 Storage 10 | . 14 9 7 Protection 10 | . 8 12 6 Energy Gun 1 | . . 2 2 Energy Cannon 3 | . . 6 . Ballistic Gun 13 | . 28 7 6 Launcher 2 | . . 1 8 Peak Build Rating 19 | 6 7 14 19 Average Rating 9 | 4 6 10 12 On Entrance 5 | . 6 7 9 Avg Prop Armor Cover (%) 12 | . 13 7 . Naked Turns . | . . . . Heaviest Build 31 | 12 15 21 31 Greatest Support 40 | 20 20 40 40 Greatest Overweight (x) 7 | 1 4 6 7 Average Overweight (x) 1 | . 2 1 . Largest Inventory Capacity 10 | 8 8 8 10 Average Capacity 7 | 6 8 7 8 Most Carried 8 | 7 8 8 7 Average Carried 5 | 5 6 4 5 Final Capacity 10 | 8 8 5 10 Final Carried 8 | 7 8 3 7 Class Distribution -------------------- 100% | Mutant Dominant Class ---------------- Mutant | -10/Materials Mutant | -9/Materials Mutant | -8/Materials Resources | -11 -10 -9 -8 ----------- Run | Yrd Mat Mat Mat Matter Collected 737 | 272 74 321 70 Remotely . | . . . . Salvage Created 956 | 91 124 528 213 Parts 48 | 2 7 30 9 Haulers Intercepted . | . . . . Recyclers Shooed 1 | . . 1 . Parts Field Recycled . | . . . . Retrieved Matter . | . . . . Parts Self-Destructed . | . . . . Prevented . | . . . . Parts Restored . | . . . . Kills | -11 -10 -9 -8 ------- Run | Yrd Mat Mat Mat Combat Hostiles Destroyed 25 | . 3 18 4 Guns 15 | . 3 9 3 Cannons 6 | . . 6 . AOE 4 | . . 3 1 Classes Destroyed 5 | 1 1 2 1 Tunneler 1 | . . . 1 Recycler 1 | 1 . . . Swarmer 8 | . . 8 . Grunt 13 | . 3 7 3 Sentry 4 | . . 3 1 Best Kill Streak 6 | 1 2 6 4 Combat Bots Only 6 | . 2 6 3 Max Kills in Single Turn 1 | 1 1 1 1 Gunslinging . | . . . . Exploded 1 | . . 1 1 Melee . | . . . . Uniques/NPCs Destroyed . | . . . . Combat | -11 -10 -9 -8 -------- Run | Yrd Mat Mat Mat Hostile Shots Fired 256 | . 22 178 56 Missed 68 | . 7 51 10 Hits 188 | . 15 127 46 Projectile 188 | . 15 127 46 Critical Strikes 6 | . 1 3 2 Damage Taken 2455 | . 200 1455 800 Core 335 | . 10 241 84 Absorbed by Shields . | . . . . Core Remaining (%) 78 | 100 96 39 . Volleys Fired 103 | 2 23 49 29 Largest 2 | 2 2 2 2 Hottest 112 | 40 40 112 85 Shots Fired 125 | 4 26 65 30 Gun 101 | 4 26 42 29 Cannon 18 | . . 18 . Launcher 6 | . . 5 1 Special . | . . . . Kinetic 78 | 4 26 29 19 Thermal 10 | . . . 10 Explosive 6 | . . 5 1 Electromagnetic 31 | . . 31 . Robot Hit Streak 25 | 2 5 10 25 Robot Miss Streak 4 | 1 4 4 1 Penetration Max . | . . . . Secondary Targets 1 | . . 1 . Max Gunslinging Chain 1 | . . 1 . Shots Hit Robots 87 | 3 14 42 28 Core Hits 44 | 2 6 27 9 Critical Kills 1 | . 1 . . Critical Parts Destroyed . | . . . . Critical Strikes 1 | . 1 . . Destroy 1 | . 1 . . Melee Attacks . | . . . . Impact . | . . . . Slashing . | . . . . Piercing . | . . . . Sneak Attacks . | . . . . Combat Hostiles . | . . . . Follow-up Attacks . | . . . . Damage Inflicted 1831 | 33 176 1018 604 Guns 1023 | 33 173 372 445 Cannons 276 | . . 276 . Explosions 527 | . . 368 159 Melee . | . . . . Ramming 5 | . 3 2 . Kinetic 725 | 33 173 261 258 Thermal 276 | . . 89 187 Explosive 438 | . . 279 159 Electromagnetic 387 | . . 387 . Impact . | . . . . Slashing . | . . . . Piercing . | . . . . Highest Corruption . | . . . . Average Corruption . | . . . . Corruption Purged . | . . . . Corruption Blocked . | . . . . Overload Shots . | . . . . Overflow Damage 26 | . . 4 22 Projectiles . | . . . . Explosions 26 | . . 4 22 Melee . | . . . . Knockbacks . | . . . . Impact . | . . . . Kinetic . | . . . . Secondary . | . . . . Self-Inflicted Damage 195 | . 1 153 41 Shots 4 | . . 3 1 Rammed 1 | . 1 . . Targets Rammed 2 | . 1 1 . Kicked 1 | . . 1 . Crushed . | . . . . Highest Temperature 176 | . 21 176 72 Average Temperature 36 | . 7 41 28 Received Heat Transfer 834 | . 135 366 333 Siege Activations . | . . . . Martial Activations . | . . . . Shielding Activations . | . . . . Robots Disrupted . | . . . . Combat Hostiles . | . . . . Robots Corrupted . | . . . . Combat Hostiles . | . . . . Parts Fried 4 | . . 4 . Impact Corruptions . | . . . . Robots Melted . | . . . . Combat Hostiles . | . . . . Parts Melted . | . . . . Heat Transferred 520 | . . 150 370 Parts Sabotaged . | . . . . Parts Stolen . | . . . . Parts Stripped . | . . . . Power Chain Reactions 2 | . . 2 . Alert | -11 -10 -9 -8 ------- Run | Yrd Mat Mat Mat Maximum Alert Level . | . . . . Low Security (%) 100 | 100 100 100 100 Level 1 . | . . . . Level 2 . | . . . . Level 3 . | . . . . Level 4 . | . . . . Level 5 . | . . . . High Security . | . . . . Max Security . | . . . . Peak Influence 139 | 5 42 139 63 Initial 41 | . . . 41 Average 28 | 1 5 52 9 Influence Increases 713 | 5 86 509 113 Destroy 0b10 Robot/C 500 | . 60 360 80 Destroy 0b10 Robot/NC 10 | 5 . . 5 Destroy Leader 90 | . 20 50 20 Successful Hack 5 | . 5 . . Disable Machine 30 | . . 30 . Destroy Structure 63 | . 1 54 8 Lose Combat Pursuer 15 | . . 15 . Influence Decreases 700 | 5 86 410 199 Entered New Map 58 | . . . 58 Time Decay 469 | 5 86 297 81 Lost Part 173 | . . 113 60 Squads Dispatched 6 | . 2 1 3 Investigation . | . . . . Extermination . | . . . . Reinforcement 4 | . 2 1 1 Assault . | . . . . Garrison 2 | . . . 2 Intercept . | . . . . Searches Triggered . | . . . . Construction Impeded . | . . . . Haulers Reinforced . | . . . . Active Scanning Responses . | . . . . Cargo Convoy Interrupts . | . . . . Stealth | -11 -10 -9 -8 --------- Run | Yrd Mat Mat Mat Distress Signals 6 | . 2 3 1 Communications Jammed . | . . . . Distress Signals . | . . . . Times Spotted 45 | . 10 25 10 Peak Tracking Total 8 | . 3 7 8 Tactical Retreats 1 | . . 1 . Traps | -11 -10 -9 -8 ------- Run | Yrd Mat Mat Mat Traps Triggered 2 | . 2 . . Indirectly . | . . . . Trap Hack Attempts . | . . . . Triggered . | . . . . Disarmed . | . . . . Reprogrammed . | . . . . Reused . | . . . . Traps Extracted . | . . . . Installed . | . . . . Triggered . | . . . . Machines | -11 -10 -9 -8 ---------- Run | Yrd Mat Mat Mat Machines Disabled 2 | . . 2 . Max in Single Turn 1 | . . 1 . Machines Repaired . | . . . . Machines Dismantled . | . . . . Machines Sabotaged . | . . . . Overloaded Fab Kills . | . . . . Hacking | -11 -10 -9 -8 --------- Run | Yrd Mat Mat Mat Machines Accessed 4 | . 3 . 1 Terminals 4 | . 3 . 1 Fabricators . | . . . . Repair Stations . | . . . . Recycling Units . | . . . . Scanalyzers . | . . . . Garrison Access . | . . . . Total Hacks 8 | . 7 . 1 Successful 2 | . 2 . . Failed 6 | . 5 . 1 Catastrophic 1 | . 1 . . Database Lockouts . | . . . . Manual . | . . . . Terminals 8 | . 7 . 1 Fabricators . | . . . . Repair Stations . | . . . . Recycling Units . | . . . . Scanalyzers . | . . . . Garrison Access . | . . . . Terminal Hacks 2 | . 2 . . Prototype ID Bank 1 | . 1 . . Locate Traps 1 | . 1 . . Fabricator Hacks . | . . . . Repair Station Hacks . | . . . . Recycling Unit Hacks . | . . . . Scanalyzer . | . . . . Garrison Access Hacks . | . . . . Unauthorized Hacks . | . . . . Terminals . | . . . . Fabricators . | . . . . Repair Stations . | . . . . Recycling Units . | . . . . Scanalyzers . | . . . . Garrison Access . | . . . . Data Cores Recovered . | . . . . Used . | . . . . Hacking Detections 3 | . 2 . 1 Full Trace Events . | . . . . Feedback Events . | . . . . Feedback Blocked . | . . . . Robot Schematics Acquired . | . . . . Robots Built . | . . . . Authchips . | . . . . Time . | . . . . Total Robot Build Rating . | . . . . Part Schematics Acquired . | . . . . Parts Built . | . . . . Authchips . | . . . . Time . | . . . . Total Part Build Rating . | . . . . Part Studies Acquired . | . . . . Parts Repaired . | . . . . Time . | . . . . Parts Recycled . | . . . . Recycled Matter . | . . . . Retrieved Matter . | . . . . Retrieved Components . | . . . . Parts Scanalyzed . | . . . . Part Schematics Acquired . | . . . . Parts Damaged . | . . . . Bothacking | -11 -10 -9 -8 ------------ Run | Yrd Mat Mat Mat Used RIF Installer . | . . . . Robots Hacked . | . . . . Non-combat . | . . . . Combat . | . . . . Robot Hacks Applied . | . . . . Relay Couplers Released . | . . . . Fabnet Peak Effective % . | . . . . Robots Rewired . | . . . . Allies Hacked . | . . . . Hacks Repelled . | . . . . Allies | -11 -10 -9 -8 -------- Run | Yrd Mat Mat Mat Total Allies . | . . . . Largest Group . | . . . . Highest-Rated Group . | . . . . Highest-Rated Ally . | . . . . Total Orders . | . . . . Ally Attacks . | . . . . Total Damage . | . . . . Kills . | . . . . Allies Corrupted . | . . . . Allies Melted . | . . . . Intel | -11 -10 -9 -8 ------- Run | Yrd Mat Mat Mat Active Infowar (turns) 753 | . . 753 . Seismic 753 | . . 753 . Robot Analysis Total . | . . . . Derelict Logs Recovered . | . . . . Drone Launches . | . . . . Drone Recoveries . | . . . . Exploration | -11 -10 -9 -8 ------------- Run | Yrd Mat Mat Mat Turns Passed 2058 | 71 656 972 359 Spaces Moved 718 | 46 281 258 133 Core 269 | 10 236 22 1 Treads 177 | . . 45 132 Legs 247 | 36 45 166 . Wheels . | . . . . Hover . | . . . . Flight 25 | . . 25 . Fastest Speed 37 | 50 120 37 160 Average Speed 185 | 106 209 185 163 Slowest Speed 400 | 120 250 350 400 Overloaded Moves . | . . . . Propulsion Burnouts . | . . . . Robots Hopped . | . . . . Potential Cave-ins . | . . . . Cave-ins Triggered . | . . . . Exploration Rate (%) 23 | 4 44 26 20 Regions Visited 3 Branch Regions . Pre-discovered Areas . | . . . . Known Exits Taken . | . . . . Unknown Exits Taken 3 | 1 1 1 . Scrap Searched . | . . . . Spaces Dug . | . . . . Terrain Destroyed 83 | . . 76 7 Melee . | . . . . Projectile . | . . . . AOE 83 | . . 76 7 Terrain Rammed . | . . . . Walls Destroyed . | . . . . Machines Disabled . | . . . . Actions | -11 -10 -9 -8 --------- Run | Yrd Mat Mat Mat Total 1312 | 62 323 685 242 Wait 411 | . . 342 69 Move 715 | 45 280 257 133 Hop . | . . . . Pick Up 25 | 9 7 5 4 Fast Attach 26 | 4 4 12 6 Attach 11 | 2 1 8 . Detach 2 | . . 2 . Swap . | . . . . Drop 17 | . 7 9 1 Fire 103 | 2 23 49 29 Melee . | . . . . Ram 1 | . 1 . . Kick 1 | . . 1 . Crush . | . . . . Escape Stasis . | . . . . Rewire . | . . . . Trap . | . . . . Miscellaneous . | . . . . Route ------- -11/Scrapyard -10/Materials -9/Materials -8/Materials History --------- Turn | Location | Event 8 | -11/Scrapyard | Discovered new exit (range 16) 72 | -11/Scrapyard | Entered Materials 336 | -10/Materials | Build established: Mutant 710 | -10/Materials | Discovered new exit (range 10) 728 | -10/Materials | Entered another Materials area 728 | -9/Materials | Evolved 2 slots: Utility x2 1014 | -9/Materials | Lost 4 parts (1n1u2w) 1537 | -9/Materials | Core integrity fell below 50% 1569 | -9/Materials | Lost 8 parts (1p2n3u2w) 1688 | -9/Materials | Discovered new exit (range 5) 1700 | -9/Materials | Entered another Materials area 1700 | -8/Materials | Evolved 2 slots: Power x1, Utility x1 1923 | -8/Materials | Garrison activated, responded to threat 2059 | -8/Materials | Self-destructed Last Messages --------------- 02028_ Penetrated by Slug. 02030_ R-06 Scavenger collects Lgt. Treads. 02033_ G-47 Trooper destroyed. 02033_ Destroyed Tractor Beam. 02035_ Mni. Grenade Launcher destroyed. 02035_ Critical hit (Burn: +37). 02038_ Penetrated by Slug. 02041_ Lgt. Treads destroyed. 02043_ Penetrated by Slug. 02043_ Critical hit (Destroy). 02043_ Imp. Ion Engine destroyed. 02044_ Slug penetrates Wall. 02046_ Penetrated by Slug. 02046_ Lgt. Treads destroyed. 02051_ G-47 Trooper destroyed. 02053_ Penetrated by Slug. 02053_ Thermal Generator destroyed. 02053_ Heat Sink destroyed. 02056_ Penetrated by Slug. 02057_ U-05 Engineer lays Concrete. Map ----- +----------------------------------------------------+ | ?????????????????????????????????????????????????? | | ?????????????????????????????????????????????????? | | ?????????????????????????????????????????????????? | | ?????????????????????????????????????????????????? | | ?????????????????????????????????????????????????? | | ?????????????????????????????????????????????????? | | ?????????????????????????????????????????????????? | | ?????????????????????????????????????????????????? | | ?????????????????????????????????????????????????? | | ?????????????????????????????????????????????????? | | ?????????????????????????????????????????????????? | | ??????????????????????????????? ??? ??????????? | | ??????????????????????????????? ""? ###???????? | | ???????????????????#######????? u""" #???????? | | ???????????????????# "" #????# t""" #???????? | | ???????????????????# ""S #????# % #???????? | | ????????????????#### "" ###### #???????? | | ????????????????#""" # u """ #???????? | | ????????????????#"G """ #???????? | | ????????????????#""" """ % """ #####???? | | ????????????????#### """! [* # #???? | | ???????????????????# """ % ^ # #???? | | ???????????????????# # """ # ##### | | ???????????????????# ! #x####^ """ ! #!! ##! | | ???????????????????####+##x#### """ # ## " | | ?????????????????????# s@% # # ## " | | ?????????????????????#""s"" # # ## " | | ?????????????????????#"%""" # """ ##+### "" | | ?????????????????????#""""" # ^""" # "" | | ?????????????????????#""""" + """ + "" | | ?????????????????????#""""" # # "" | | ?????????????????????#"""" # ^ ####+#+# "" | | ?????????????????????#""""" # """ ## # " | | ?????????????????????# # """ ## # | | ?????????????????????######+### """ ## = # | | ??????????????????????????????# ## #### | | ??????????????????????????????# #####+##??? | | ??????????????????????????????# ] #???? | | ??????????????????????????????# #???? | | ??????????????????????????????# #???? | | ??????????????????????????????# "" #???? | | ??????????????????????????????# "Y ##### | | ????????????????????????????? "" # | | ???????????????????????????? ! # | | ???????????????????????????? # | | ?????????????????????????????#####+## # | | ????????????????????????????????????# # | | ????????????????????????????????????# # | | ????????????????????????????????????# + | | ????????????????????????????????????# # | +----------------------------------------------------+ Best States ------------- Heat Dissipation 38 Energy Generation 10 Energy Capacity 265 Matter Stores 300 Matter Capacity 300 Sight Range 16 Terrain Scan Density 10 Armor Coverage 300 Resistance: EM 15 Evasion (%) 55 Recoil Reduction 2 Item Schematics ----------------- None Robot Schematics ------------------ None Fabricated ------------ Nothing Repaired ---------- Nothing Studied --------- None Alien Tech Used ----------------- None Achievements -------------- DATA ERROR: Steam Global Achievement% For Emergencies Only Heavy Suspicion Organ Harvest Resistances Are Futile There's More Where That Came From Challenges ------------ None Game ------ Seed AlphaBombBeamcaster Manual? 0 Play Time 00:32:32 Cumulative 35.2 hours Start 2025.12.14 @ 12:29:48 End 2025.12.14 @ 13:04:56 Sessions 1 Manual Loads 0 Difficulty Rogue Special Mode None Game No. 29 Rogue 29 Adventurer 0 Explorer 0 Win Type - Total 0 Types 0/0/0/0/0/0/0/0/0/0 Lore% 15 Gallery% 23 Achievement% 15 Wizard Run 0 Options --------- Layout 1 ASCII 0 Keyboard 0 Movement Mouse Keybinds 0 Fullscreen 0 Font 20/SmallcapsGlow Map View 50x35 Zoom Use 0% Tactical HUD 1 Map Filters NONE Filters NONE Steam 1 RUN: 6ecce2ac-726b-4237-ae1d-7b920469b3e8